Cogmind - Beta 9.4 @@@ ROGUE MODE // 2020.03.09 @ 15:26:54 Player: Pimski Result: Core destroyed Performance ------------- Evolutions (1) 500 Regions Visited (5) 1000 Robots Destroyed (22) 110 Value Destroyed (345) 345 Prototype IDs (25) 500 Alien Tech Used (0) 0 Bonus (-384) -384 TOTAL SCORE: 2071 Bonus ------- Follower Combat Kills 83 Aligned with FarCom 300 Friendly Fire -767 Cogmind --------- Core Integrity 0/400 Matter 163/300 Energy 100/100 System Corruption 0% Temperature Cool (0) Movement Core (50) Location -9/Exiles Parts ------- > --- POWER (1) -------- (None) > --- PROPULSION (2) --- (None) > --- UTILITY (4) ------ (None) > --- WEAPON (2) ------- (None) > --- INVENTORY (4) ---- Large Storage Unit High-capacity Storage Unit Peak State ------------ > --- POWER ------------ Light Nuclear Core > --- PROPULSION ------- Light Treads Light Treads > --- UTILITY ---------- High-capacity Storage Unit High-capacity Storage Unit Heavy Armor Plating > --- WEAPON ----------- Heavy Assault Rifle Heavy Assault Rifle > --- INVENTORY -------- Improved Flight Unit Improved Flight Unit Improved Flight Unit Improved Flight Unit Improved Flight Unit Improved Heat Sink Medium Storage Unit Large Storage Unit High-capacity Storage Unit Supersonic Drone Bay Shock Rifle Shock Rifle Shock Rifle Latent Energy Streamer Rocket Launcher Plasma Cutter [Rating: 22] Favorites ----------- Power Light Nuclear Core Engine Ion Engine Power Core Light Nuclear Core Propulsion Light Treads Treads Light Treads Leg Aluminum Leg Wheel Compact Wheel Flight Unit Improved Flight Unit Utility Large Storage Unit Device Improved Heat Sink Storage Large Storage Unit Protection Heavy Armor Plating Weapon Heavy Assault Rifle Energy Gun Medium Laser Ballistic Gun Heavy Assault Rifle Launcher Rocket Launcher Special Weapon Plasma Cutter Build | -11 -10 -10 -9 -9 -9 ------- Run | Scr Mat Min Mat Min Exi Slots Evolved 2 | . . . 2 . . Power . | . . . . . . Propulsion . | . . . . . . Utility 2 | . . . 2 . . Weapon . | . . . . . . Parts Attached 40 | 1 2 12 12 1 12 Power 3 | . . 2 1 . . Engine 1 | . . 1 . . . Core 2 | . . 1 1 . . Reactor . | . . . . . . Propulsion 13 | . 2 7 4 . . Treads 7 | . 2 3 2 . . Leg . | . . . . . . Wheel 5 | . . 4 1 . . Hover . | . . . . . . Flight 1 | . . . 1 . . Utility 7 | . . 2 2 . 3 Device 2 | . . . 1 . 1 Storage 4 | . . 2 . . 2 Processor . | . . . . . . Hackware . | . . . . . . Protection 1 | . . . 1 . . Artifact . | . . . . . . Weapon 17 | 1 . 1 5 1 9 Energy Gun 7 | 1 . 1 1 . 4 Energy Cannon . | . . . . . . Ballistic Gun 6 | . . . 3 1 2 Ballistic Cannon . | . . . . . . Launcher 3 | . . . 1 . 2 Special Weapon 1 | . . . . . 1 Impact Weapon . | . . . . . . Slashing Weapon . | . . . . . . Piercing Weapon . | . . . . . . Special Melee Weapon . | . . . . . . Unidentified Prototypes 1 | . . . 1 . . Parts Lost 15 | . . 3 . . 12 Power 2 | . . 1 . . 1 Propulsion 3 | . . 1 . . 2 Utility 2 | . . . . . 2 Weapon 8 | . . 1 . . 7 Highest Loss Streak 7 | . . 3 . . 7 Average Slot Usage (%) 88 | . 85 97 85 88 84 Engine 4 | . 14 12 1 . . Core 7 | . . 1 9 11 10 Treads 20 | . 19 20 16 22 20 Wheel 2 | . . 6 5 . . Storage 22 | . 14 26 22 22 20 Protection 6 | . . . 7 11 10 Energy Gun 5 | . 14 14 2 . 1 Ballistic Gun 17 | . 14 14 18 22 19 Naked Turns . | . . . . . . Heaviest Build 90 | 12 12 32 48 50 90 Greatest Support 40 | 20 40 40 40 40 40 Greatest Overweight (x) 4 | . . 1 4 1 2 Average Overweight (x) 1 | . . . 1 1 1 Largest Inventory Capacity 20 | 6 6 14 14 14 20 Average Capacity 14 | 6 6 11 14 14 16 Most Carried 18 | 6 6 13 14 14 18 Average Carried 11 | 6 5 9 13 13 13 Final Capacity 14 | 6 6 14 14 14 4 Final Carried 14 | 6 6 13 14 14 2 Class Distribution -------------------- 76% | Mutant 23% | Hauler-Mutant Dominant Class ---------------- Mutant | -10/Materials Mutant | -10/Mines Mutant | -9/Materials Mutant | -9/Mines Hauler-Mutant | -9/Exiles Resources | -11 -10 -10 -9 -9 -9 ----------- Run | Scr Mat Min Mat Min Exi Matter Collected 757 | 218 . 148 150 31 210 Remotely . | . . . . . . Salvage Created 597 | 74 . 303 67 130 23 Parts 31 | . . 14 6 11 . Haulers Intercepted 1 | . . . 1 . . Recyclers Shooed . | . . . . . . Parts Field Recycled . | . . . . . . Retrieved Matter . | . . . . . . Parts Self-Destructed . | . . . . . . Prevented . | . . . . . . Kills | -11 -10 -10 -9 -9 -9 ------- Run | Scr Mat Min Mat Min Exi Combat Hostiles Destroyed 11 | . . 6 1 2 2 Guns 8 | . . 6 . 2 . AOE 3 | . . . 1 . 2 Classes Destroyed 9 | 1 . 2 3 2 1 Worker 2 | . . . 1 1 . Builder 1 | . . . . 1 . Tunneler 1 | . . 1 . . . Hauler 1 | . . . 1 . . Recycler 1 | 1 . . . . . Swarmer 1 | . . . 1 . . Grunt 7 | . . 6 . 1 . Brawler 1 | . . . . 1 . Assembled 7 | . . . . . 7 Best Kill Streak 3 | 1 . 2 2 3 2 Combat Bots Only 2 | . . 2 1 2 2 Max Kills in Single Turn 5 | 1 . 1 1 1 5 Gunslinging . | . . . . . . Exploded 1 | . . . 1 . 1 Melee . | . . . . . . Uniques/NPCs Destroyed . | . . . . . . Combat | -11 -10 -10 -9 -9 -9 -------- Run | Scr Mat Min Mat Min Exi Damage Taken 2167 | . . 544 8 65 1550 Core 510 | . . 110 . 11 389 Absorbed by Shields . | . . . . . . Core Remaining (%) 78 | 100 . 56 . . . Volleys Fired 111 | 8 . 23 4 6 70 Largest 2 | 2 . 2 2 2 2 Hottest 100 | 70 . 70 43 43 100 Shots Fired 163 | 16 . 46 6 12 83 Gun 154 | 16 . 46 4 12 76 Cannon . | . . . . . . Launcher 7 | . . . 2 . 5 Special 2 | . . . . . 2 Kinetic 96 | 8 . 23 4 12 49 Thermal 29 | 8 . 19 . . 2 Explosive 7 | . . . 2 . 5 Electromagnetic 31 | . . 4 . . 27 Robot Hit Streak 29 | 4 . 24 3 5 29 Robot Miss Streak 5 | 5 . 2 1 2 2 Penetration Max . | . . . . . . Secondary Targets . | . . . . . . Shots Hit Robots 125 | 9 . 35 3 8 70 Core Hits 60 | 2 . 17 7 5 29 Critical Hits 1 | 1 . . . . . Critical Kills . | . . . . . . Critical Parts Destroyed 1 | 1 . . . . . Melee Attacks . | . . . . . . Impact . | . . . . . . Slashing . | . . . . . . Piercing . | . . . . . . Sneak Attacks . | . . . . . . Combat Hostiles . | . . . . . . Follow-up Attacks . | . . . . . . Damage Inflicted 1877 | 113 . 389 215 114 1046 Guns 1335 | 113 . 389 42 109 682 Cannons . | . . . . . . Explosions 525 | . . . 173 . 352 Melee . | . . . . . . Ramming 6 | . . . . 5 1 Kinetic 976 | 38 . 126 42 109 661 Thermal 312 | 75 . 226 . . 11 Explosive 525 | . . . 173 . 352 Electromagnetic 58 | . . 37 . . 21 Impact . | . . . . . . Slashing . | . . . . . . Piercing . | . . . . . . Highest Corruption . | . . . . . . Average Corruption . | . . . . . . Corruption Purged . | . . . . . . Overload Shots . | . . . . . . Overflow Damage 106 | . . . 48 . 58 Projectiles . | . . . . . . Explosions 106 | . . . 48 . 58 Melee . | . . . . . . Knockbacks . | . . . . . . Impact . | . . . . . . Kinetic . | . . . . . . Secondary . | . . . . . . Self-Inflicted Damage 94 | . . . . . 94 Shots 2 | . . . . . 2 Rammed 2 | . . . . 1 1 Targets Rammed 3 | . . . . 2 1 Kicked . | . . . . . . Crushed 1 | . . . . 1 . Highest Temperature 184 | 120 . 184 12 51 108 Average Temperature 57 | 61 . 64 5 27 64 Received Heat Transfer 192 | . . 156 . 36 . Siege Activations . | . . . . . . Robots Corrupted . | . . . . . . Combat Hostiles . | . . . . . . Parts Fried . | . . . . . . Impact Corruptions . | . . . . . . Robots Melted . | . . . . . . Combat Hostiles . | . . . . . . Parts Melted 2 | . . 2 . . . Heat Transferred 897 | 222 . 666 . . 9 Parts Sabotaged . | . . . . . . Parts Stolen . | . . . . . . Parts Stripped . | . . . . . . Power Chain Reactions . | . . . . . . Missiles Intercepted . | . . . . . . Alert | -11 -10 -10 -9 -9 -9 ------- Run | Scr Mat Min Mat Min Exi Peak Influence 132 | 5 25 109 132 108 . Average Influence 43 | 1 9 36 63 60 . Maximum Alert Level . | . . . . . . Low Security (%) 100 | 100 100 100 100 100 . Level 1 . | . . . . . . Level 2 . | . . . . . . Level 3 . | . . . . . . Level 4 . | . . . . . . Level 5 . | . . . . . . High Security . | . . . . . . Max Security . | . . . . . . Squads Dispatched 2 | . 1 . 1 . . Investigation 2 | . 1 . 1 . . Extermination . | . . . . . . Reinforcement . | . . . . . . Assault . | . . . . . . Garrison . | . . . . . . Intercept . | . . . . . . Construction Impeded . | . . . . . . Haulers Reinforced . | . . . . . . Stealth | -11 -10 -10 -9 -9 -9 --------- Run | Scr Mat Min Mat Min Exi Distress Signals 1 | . 1 . . . . Communications Jammed . | . . . . . . Distress Signals . | . . . . . . Times Spotted 18 | . 4 7 2 2 3 Peak Tracking Total 5 | . 5 2 3 2 4 Tactical Retreats 1 | . . . 1 . . Traps | -11 -10 -10 -9 -9 -9 ------- Run | Scr Mat Min Mat Min Exi Traps Triggered . | . . . . . . Indirectly . | . . . . . . Trap Hack Attempts . | . . . . . . Triggered . | . . . . . . Disarmed . | . . . . . . Reprogrammed . | . . . . . . Reused 3 | . . . . . 3 Traps Extracted . | . . . . . . Installed 3 | . . . . . 3 Triggered 1 | . . . . 1 . Machines | -11 -10 -10 -9 -9 -9 ---------- Run | Scr Mat Min Mat Min Exi Machines Disabled 4 | . . . . . 4 Max in Single Turn 2 | . . . . . 2 Machines Sabotaged . | . . . . . . Garrisons Compromised . | . . . . . . Overloaded Fab Kills . | . . . . . . Fab Network Shutdowns . | . . . . . . Hacking | -11 -10 -10 -9 -9 -9 --------- Run | Scr Mat Min Mat Min Exi Machines Accessed 5 | . 3 . . . 2 Terminals 3 | . 3 . . . . Fabricators . | . . . . . . Repair Stations . | . . . . . . Recycling Units . | . . . . . . Scanalyzers . | . . . . . . Garrison Access . | . . . . . . Total Hacks 11 | . 9 . . . 2 Successful 5 | . 3 . . . 2 Failed 5 | . 5 . . . . Catastrophic 1 | . 1 . . . . Database Lockouts 1 | . 1 . . . . Manual 8 | . 7 . . . 1 Terminals 9 | . 9 . . . . Fabricators . | . . . . . . Repair Stations . | . . . . . . Recycling Units . | . . . . . . Scanalyzers . | . . . . . . Garrison Access . | . . . . . . Terminal Hacks 4 | . 2 . . . 2 Record 1 | . . . . . 1 Prototype ID Bank 1 | . 1 . . . . Branch Access Points 1 | . 1 . . . . EX-Prototype ID Bank 1 | . . . . . 1 Fabricator Hacks . | . . . . . . Repair Station Hacks . | . . . . . . Recycling Unit Hacks . | . . . . . . Scanalyzer . | . . . . . . Garrison Access Hacks . | . . . . . . Unauthorized Hacks 2 | . 2 . . . . Terminals 1 | . 1 . . . . Botnet 1 | . 1 . . . . Fabricators . | . . . . . . Repair Stations . | . . . . . . Recycling Units . | . . . . . . Scanalyzers . | . . . . . . Garrison Access . | . . . . . . Data Cores Recovered . | . . . . . . Used . | . . . . . . Hacking Detections 3 | . 3 . . . . Full Trace Events . | . . . . . . Feedback Events . | . . . . . . Feedback Blocked . | . . . . . . Robot Schematics Acquired . | . . . . . . Robots Built . | . . . . . . Matter . | . . . . . . Time . | . . . . . . Total Robot Build Rating . | . . . . . . Part Schematics Acquired . | . . . . . . Parts Built . | . . . . . . Matter . | . . . . . . Time . | . . . . . . Total Part Build Rating . | . . . . . . Parts Repaired . | . . . . . . Time . | . . . . . . Parts Recycled . | . . . . . . Recycled Matter . | . . . . . . Retrieved Matter . | . . . . . . Retrieved Components . | . . . . . . Parts Scanalyzed . | . . . . . . Part Schematics Acquired . | . . . . . . Parts Damaged . | . . . . . . Bothacking | -11 -10 -10 -9 -9 -9 ------------ Run | Scr Mat Min Mat Min Exi Used RIF Installer . | . . . . . . Robots Hacked . | . . . . . . Non-combat . | . . . . . . Combat . | . . . . . . Robot Hacks Applied . | . . . . . . Relay Couplers Released . | . . . . . . Robots Rewired . | . . . . . . Allies Hacked . | . . . . . . Hacks Repelled . | . . . . . . Allies | -11 -10 -10 -9 -9 -9 -------- Run | Scr Mat Min Mat Min Exi Total Allies 3 | . . 3 . . . Largest Group 3 | . . 3 3 . . Highest-Rated Group 40 | . . 40 40 . . Highest-Rated Ally 16 | . . 16 16 . . Total Orders . | . . . . . . Ally Attacks 22 | . . . 22 . . Total Damage 292 | . . . 292 . . Kills 6 | . . . 6 . . Allies Corrupted . | . . . . . . Allies Melted . | . . . . . . Intel | -11 -10 -10 -9 -9 -9 ------- Run | Scr Mat Min Mat Min Exi Robot Analysis Total . | . . . . . . Derelict Logs Recovered . | . . . . . . Drone Launches . | . . . . . . Drone Recoveries . | . . . . . . Exploration | -11 -10 -10 -9 -9 -9 ------------- Run | Scr Mat Min Mat Min Exi Turns Passed 3021 | 34 129 874 264 326 1394 Spaces Moved 1607 | 9 82 576 150 163 627 Core . | . . . . . . Treads 1105 | . 52 201 62 163 627 Legs 39 | 9 30 . . . . Wheels 463 | . . 375 88 . . Hover . | . . . . . . Flight . | . . . . . . Fastest Speed 110 | 120 120 110 110 180 180 Average Speed 159 | 120 145 127 142 180 190 Slowest Speed 200 | 120 160 160 180 180 200 Overloaded Moves . | . . . . . . Propulsion Burnouts . | . . . . . . Robots Hopped . | . . . . . . Cave-ins Triggered . | . . . . . . Exploration Rate (%) 39 | 2 22 90 19 33 68 Regions Visited 5 Branch Regions 3 Pre-discovered Areas 2 | . . . . 1 1 Known Exits Taken 1 | . 1 . . . . Unknown Exits Taken 4 | 1 . 1 1 1 . Scrap Searched 4 | . . 3 . 1 . Spaces Dug . | . . . . . . Terrain Destroyed 48 | . . . 19 . 29 Melee . | . . . . . . Projectile . | . . . . . . AOE 48 | . . . 19 . 29 Actions | -11 -10 -10 -9 -9 -9 --------- Run | Scr Mat Min Mat Min Exi Total 1913 | 17 95 671 200 185 745 Wait 60 | . . 46 2 8 4 Move 1602 | 8 81 575 149 162 627 Hop . | . . . . . . Pick Up 44 | . 6 12 13 3 10 Fast Attach 10 | . . 2 7 1 . Attach 13 | . 2 3 2 . 6 Detach 1 | . . . 1 . . Swap 17 | 1 . 7 3 . 6 Drop 50 | . 6 3 19 3 19 Fire 111 | 8 . 23 4 6 70 Melee . | . . . . . . Ram . | . . . . . . Kick . | . . . . . . Crush 2 | . . . . 2 . Escape Stasis . | . . . . . . Rewire . | . . . . . . Trap 3 | . . . . . 3 Miscellaneous . | . . . . . . Route ------- -11/Scrapyard -10/Materials -10/Mines (discovered 2 exits: [*Mat x2]) -9/Materials -9/Mines (discovered 3 exits: [*Mat x2] / *Exi) -9/Exiles (discovered 1 exit: [*Min]) History --------- Turn | Location | Event 3 | -11/Scrapyard | Discovered new exit (range 2) 35 | -11/Scrapyard | Entered Materials 68 | -10/Materials | Identified exit to Mines 151 | -10/Materials | Central database locked down 164 | -10/Materials | Entered Mines 313 | -10/Mines | Build established: Mutant 443 | -10/Mines | Assembled infested the area 448 | -10/Mines | Assisted by a Guerilla fighting off Assembled 671 | -10/Mines | Lost 3 parts (1p1n1w) 694 | -10/Mines | Assisted by bots powering up and referring to "LRC-V3" 711 | -10/Mines | Discovered new exit (range 9) 933 | -10/Mines | Discovered new exit (range 9) 1038 | -10/Mines | Entered Materials 1038 | -9/Materials | Accompanied by 3 allies 1038 | -9/Materials | Evolved 2 slots: Utility x2 1282 | -9/Materials | Discovered new exit (range 6) 1302 | -9/Materials | Entered Mines 1326 | -9/Mines | Discovered new exit (range 9) 1338 | -9/Mines | Learned location of Storage (-9) 1465 | -9/Mines | Discovered new exit (range 6) 1467 | -9/Mines | Found a hidden stash of uninstalled traps 1621 | -9/Mines | Deemed a non-threat by the Exiles lab entrance 1621 | -9/Mines | Discovered new exit (range 5) 1628 | -9/Mines | Entered Exiles 1652 | -9/Exiles | Discovered new exit (range 15) 1677 | -9/Exiles | Met 8R-AWN 1702 | -9/Exiles | Met EX-HEX 1787 | -9/Exiles | Met EX-DEC 1817 | -9/Exiles | Learned location of Zion (-6) 2384 | -9/Exiles | Build established: Hauler-Mutant 2482 | -9/Exiles | Met EX-BIN 2506 | -9/Exiles | Aligned with FarCom system 2508 | -9/Exiles | Given EX-Vault access code 2554 | -9/Exiles | Opened EX-Vault 2566 | -9/Exiles | Found Supersonic Drone Bay 2571 | -9/Exiles | Found Latent Energy Streamer 2614 | -9/Exiles | Warned to stay clear of 0b10 Research branches 2861 | -9/Exiles | Attacked by the Exiles 2946 | -9/Exiles | Lost 5 parts (1n1u3w) 2983 | -9/Exiles | Core integrity fell below 50% 3000 | -9/Exiles | Core integrity fell below 20% 3022 | -9/Exiles | Released all parts (1) 3022 | -9/Exiles | Core destroyed Last Messages --------------- 02982_ Penetrated by HV Slug. 03003_ Plasma Cutter destroyed. 03003_ Penetrated by HV Slug. 03012_ HV Slug penetrates Wall. 03016_ The unstable cave ceiling collapses. 03016_ Penetrated by HV Slug. 03016_ Critical hit. 03016_ Hvy. Assault Rifle destroyed. 03016_ HV Slug penetrates Assembled Analyzer. 03016_ HV Slug penetrates Wall. 03018_ Imp. Heat Sink destroyed. 03018_ Destroyed Imp. Heat Sink. 03020_ Rocket Launcher destroyed. 03020_ Destroyed Rocket Launcher. 03020_ Penetrated by HV Slug. 03020_ HV Slug penetrates Wall. 03020_ HV Slug penetrates Assembled Analyzer. 03022_ Released Hcp. Storage Unit. 03022_ Slammed into 8R-AWN. 03022_ Destabilizing: Core damaged (-16). Map ----- +----------------------------------------------------+ | """#???????????????????????????????????? | | """#???????????????????????????????????? | | """#???????????????????????????????????? | | """##??????????????????????????????????? | | """""??????????????????????????????????? | | """##??????????????????????????????????? | | "X" """""??????????????????????????????????? | | """ #???????????????????????????????????? | | """""""""#???????????????????????????????????? | | ###########???????????????????????????????????? | | #?????????????????????????????????????????????? | | #?????????????????????????????????????????????? | | ##????????????????????????????????????????????? | | ##???###########?????????????????????????????? | | #####"""" """"##????????????????????????????? | | " "" """"##???????????????????????????? | | "" " #???????????????????????????? | | """#???????????????????????????? | | a"#???????????#####???????????? | | "##?????????##" #???????????? | | "###???????#" #???????????? | | " " #??##??##"^ ##??????????? | | """ ### #### ###????????# | | ####""" # ########## | | ???##""" #""""## | | ????#"""" @ | | ???##"" g ## | | ####"""" #### | | #""" #?#"""""#### | | "" ""##?#######??#### | | ######??????????????### | | ##?????????????????????? | | " #??????????????????????? | | "" "" "" #??????????????????????? | | ##""" " " ""# % ##???????????????????????? | | ######""" """# #????????????????????????? | | #????###""""## # #?????????????????????????? | | ####???######?? # ##??????????????????????????? | | "!#?????????????###????????????????????????????? | | !#????????????????????????????????????????????? | | "#????????????????????????????????????????????? | | "" "#????????????????????????????????????????????? | | #####????????????????????????????????????????????? | | ?????????????????????????????????????????????????? | | ?????????????????????????????????????????????????? | | ?????????????????????????????????????????????????? | | ?????????????????????????????????????????????????? | | ?????????????????????????????????????????????????? | | ?????????????????????????????????????????????????? | | ?????????????????????????????????????????????????? | +----------------------------------------------------+ Best States ------------- Heat Dissipation 42 Energy Generation 14 Energy Capacity 250 Matter Stores 300 Matter Capacity 300 Sight Range 16 Terrain Scan Density 10 Armor Coverage 600 Evasion (%) 40 Recoil Reduction 2 Item Schematics ----------------- None Robot Schematics ------------------ None Fabricated ------------ Nothing Alien Tech Used ----------------- None Achievements -------------- None Challenges ------------ None Game ------ Seed CouplerCentriumBoregun Manual? 0 Play Time 00:31:07 Cumulative 671.7 hours Start 2020.03.09 @ 14:56:24 End 2020.03.09 @ 15:26:54 Sessions 1 Manual Loads 0 Difficulty Rogue Special Mode None Game No. 427 Rogue 427 Adventurer 0 Explorer 0 Win Type - Total 105 Types 71/6/8/10/5/1/4 Lore% 97 Gallery% 95 Achievement% 80 Wizard Run 0 Options --------- ASCII 0 Keyboard 0 Movement Numpad Keybinds 0 Fullscreen 2 Font 18/SmallcapsGlow Map View 76x50 Tactical HUD 1 Map Filters NONE Filters NONE Steam 1 RUN: 2871ab3d-aaab-4dd0-9512-b66690b12255